bitfinex-derivatives/quotes_SOLF0:USTF0_20241021
["timestamp","ask_amount","ask_price","bid_price","bid_amount"]
[1729523885849,5.92,164.0,163.89,6.1037]
[1729523886045,5.92,164.02,163.9,4.0137]
[1729523886249,5.92,164.02,163.99,3.0499]
[1729523886250,8.9694,164.02,163.99,3.0499]
[1729523886457,4.35345664,164.03,163.93,5.92]
[1729523886656,9.01205664,164.03,163.93,5.92]
[1729523887057,12.06135664,164.03,164.0,3.0497]
[1729523887447,6.14135664,164.03,164.0,3.0497]
[1729523889056,3.09205664,164.03,164.0,3.0497]
[1729523889252,3.0494,164.02,164.0,3.0497]
[1729523889456,6.08430076,164.02,164.0,3.0497]
[1729523889761,6.08430076,164.02,163.93,5.92]
[1729523890661,6.08430076,164.02,163.99,3.0499]
[1729523891061,3.03490076,164.02,163.93,5.92]
[1729523891262,3.0495,164.02,163.99,3.05]
[1729523891459,6.156137,164.02,163.99,3.05]
[1729523892068,3.0494,164.03,164.0,3.0497]
[1729523892559,2.99290346,164.02,164.0,3.0497]
[1729523892858,5.92,164.04,163.99,3.0499]
[1729523893062,5.92,164.04,163.93,5.92]
[1729523893963,3.0495,164.02,163.96,3.0505]
[1729523894160,6.09489982,164.02,163.93,5.92]
[1729523894560,3.0498,164.0,163.97,3.0503]
[1729523894756,5.92,164.04,163.9,4.0137]
[1729523895359,3.0503,163.98,163.94,3.0509]
[1729523895556,5.92,164.04,163.9,4.0137]
[1729523896060,3.0501,163.99,163.96,3.0505]
[1729523896260,3.06713896,163.98,163.96,3.0505]
[1729523897060,3.06713896,163.98,163.9,4.0137]
[1729523897256,3.0506,163.96,163.93,3.0509]
[1729523897962,8.98897046,163.99,163.9,4.0137]
[1729523898765,3.0504,163.97,163.94,3.0508]
[1729523898955,6.16481826,163.97,163.94,3.0508]
[1729523902873,3.11441826,163.97,163.9,4.0137]
[1729523903066,5.92,163.99,163.9,4.0137]
[1729523903568,3.0503,163.98,163.95,3.0506]
[1729523906468,3.06831266,163.99,163.95,3.0506]
[1729523906667,3.0504,163.97,163.95,3.0506]
[1729523906863,3.0828977,163.96,163.95,3.0506]
[1729523907469,3.0502,163.98,163.95,3.0506]
[1729523913377,3.0501,163.99,163.96,3.0504]
[1729523913873,3.0501,163.99,163.97,3.0503]
[1729523914170,3.07648645,164.0,163.9,4.0137]
[1729523914376,3.0498,164.01,163.9,4.0137]
[1729523914578,3.0498,164.01,163.98,3.0501]
[1729523914776,2.99332283,164.01,163.93,5.9]
[1729523915078,8.9495,164.02,163.99,3.0498]
[1729523915576,12.03171616,164.02,163.99,3.0498]
[1729523917376,12.03171616,164.02,163.93,5.9]
[1729523917377,8.98221616,164.02,163.93,5.9]
[1729523917577,12.03161616,164.02,163.93,5.9]
[1729523918180,12.03161616,164.02,163.99,3.0499]
[1729523921574,8.75267946,164.06,163.93,5.9]
[1729523921780,3.0486,164.07,164.04,3.0489]
[1729523922083,5.9,164.1,163.99,5.9]
[1729523922383,5.9,164.1,164.06,3.0485]
[1729523922782,3.0486,164.07,164.04,3.049]
[1729523922986,5.9,164.1,164.0,2.59]
[1729523923485,3.0487,164.06,164.03,3.0491]
[1729523924282,5.9,164.1,164.0,2.59]
[1729523925583,3.0486,164.07,164.03,3.0491]
[1729523926288,3.0485,164.07,164.04,3.049]
[1729523926490,5.9,164.1,164.0,2.59]
[1729523926883,3.049,164.05,164.02,3.0494]
[1729523927289,3.049,164.05,163.97,5.9]
[1729523927290,3.0492,164.04,164.01,3.0495]
[1729523927491,3.09725637,164.03,164.01,3.0495]
[1729523928388,3.0493,164.03,164.0,3.0497]
[1729523928684,3.02683563,164.02,163.96,5.9]
[1729523928885,3.0487,164.06,164.01,3.0496]
[1729523929087,5.9,164.1,164.01,3.0496]
[1729523929490,3.0492,164.04,164.01,3.0496]
[1729523929684,5.9,164.1,164.02,3.0493]
[1729523930496,3.049,164.05,164.02,3.0493]
[1729523930903,3.0486,164.07,164.04,3.049]
[1729523931103,2.6262,164.11,163.96,5.9]
[1729523931395,8.5262,164.11,163.96,12.0009]
[1729523931598,3.0487,164.06,163.96,12.0009]
[1729523931799,8.5262,164.11,163.96,12.0009]
[1729523933199,3.0488,164.06,164.03,3.0491]
[1729523933500,3.0488,164.06,163.96,12.0009]
[1729523934606,2.99356335,164.12,163.96,5.9]
[1729523934899,3.11323772,164.12,164.08,3.0483]
[1729523935100,5.9,164.16,164.08,3.0483]
[1729523935405,8.93452199,164.16,164.08,3.0483]
[1729523936105,3.0477,164.12,164.08,3.0483]
[1729523936405,3.0477,164.12,164.03,5.9]
[1729523936707,3.0477,164.12,164.09,3.0481]
[1729523937105,3.0476,164.12,164.09,3.048]
[1729523937498,3.03452199,164.16,164.03,5.9]
[1729523937704,3.8214,164.21,164.03,5.9]
[1729523937902,5.9,164.2,164.03,5.9]
[1729523938102,8.72853957,164.18,164.03,5.9]
[1729523938400,8.72853957,164.19,164.11,3.0476]
[1729523938607,8.72853957,164.19,164.03,5.9]
[1729523938805,3.0472,164.15,164.12,3.0474]
[1729523939403,3.0469,164.16,164.13,3.0472]
[1729523940309,6.13150734,164.16,164.13,3.0472]
[1729523940512,3.08460734,164.16,164.14,3.047]
[1729523940803,3.0466,164.18,164.14,3.047]
[1729523940804,5.9,164.18,164.14,3.047]
[1729523941199,8.91761029,164.18,164.14,3.047]
[1729523941909,3.0467,164.17,164.14,3.047]
[1729523943209,3.0468,164.16,164.13,3.0473]
[1729523944113,3.0474,164.13,164.09,3.048]
[1729523944304,8.91761029,164.18,164.03,5.88]
[1729523944506,5.88,164.17,164.01,9.7716]
[1729523944707,3.0481,164.1,164.06,3.0485]
[1729523945007,6.06436608,164.1,164.06,3.0485]
[1729523945208,6.06436608,164.1,164.07,3.0485]
[1729523946203,3.01626608,164.1,164.01,9.7716]
[1729523946511,8.9279,164.11,164.08,3.0481]
[1729523947012,12.04176013,164.11,164.08,3.0481]
[1729523947810,3.11386013,164.11,164.01,9.7716]
[1729523948003,3.0474,164.13,164.1,3.0479]
[1729523948201,2.99168225,164.13,164.01,9.7716]
[1729523948405,3.0478,164.11,164.08,3.0482]
[1729523948611,3.05360858,164.1,164.08,3.0482]
[1729523948810,3.0478,164.11,164.08,3.0482]
[1729523949710,6.08951141,164.11,164.08,3.0482]
[1729523950112,3.04171141,164.11,164.01,9.7716]
[1729523950307,3.0474,164.13,164.1,3.0479]
[1729523950509,6.09143244,164.13,164.1,3.0479]
[1729523950909,3.0477,164.12,164.08,3.0482]
[1729523951112,3.04403244,164.13,164.01,9.7716]
[1729523951307,3.8727,164.14,164.01,9.7716]
[1729523951513,3.0482,164.09,164.06,3.0485]
[1729523952214,3.10016613,164.08,164.06,3.0485]
[1729523952508,3.10016613,164.08,164.01,3.8916]
[1729523952708,3.0491,164.04,163.96,5.88]
[1729523952907,5.88,164.08,163.96,5.88]
[1729523953113,2.6275,164.07,163.96,5.88]
[1729523953316,3.0492,164.04,164.0,3.0497]
[1729523953517,3.11786045,164.03,164.0,3.0497]
[1729523954012,3.11786045,164.03,164.01,3.0496]
[1729523954412,3.11786045,164.03,163.96,5.88]
[1729523954712,3.0487,164.06,164.02,3.0493]
[1729523955107,5.88,164.07,163.96,5.88]
[1729523955715,5.88,164.07,164.01,3.0495]
[1729523956311,3.0491,164.04,164.01,3.0495]
[1729523956513,2.99021955,164.04,163.96,5.88]
[1729523956716,2.5532,164.12,163.96,5.88]
[1729523956919,3.0481,164.1,163.96,5.88]
[1729523957211,5.88,164.12,163.96,5.88]
[1729523957412,8.9277,164.12,163.96,5.88]
[1729523957608,5.88,164.12,163.96,5.88]
[1729523957809,8.9276,164.12,164.09,3.048]
[1729523958220,5.88,164.12,164.03,5.88]
[1729523958416,8.93318467,164.14,164.04,1.2363]
[1729523959318,3.0478,164.11,164.04,1.2363]
[1729523959821,3.0478,164.11,164.07,3.0483]
[1729523960121,8.93318467,164.14,164.07,3.0483]
[1729523960321,8.93318467,164.14,164.04,1.2363]
[1729523961315,3.0474,164.13,164.1,3.0479]
[1729523962112,6.10048467,164.14,164.07,3.0485]
[1729523962312,3.0473,164.14,164.04,1.2363]
[1729523962922,3.00797182,164.14,164.11,3.0476]
[1729523963223,5.88,164.15,164.04,1.2363]
[1729523963618,3.0472,164.14,164.04,1.2363]
[1729523964015,8.98172906,164.15,164.1,3.0478]
[1729523964219,3.0475,164.13,164.1,3.0478]
[1729523964722,3.0473,164.14,164.11,3.0477]
[1729523965321,3.0475,164.13,164.1,3.0479]
[1729523966122,12.02882906,164.15,164.12,3.0475]
[1729523966326,8.98172906,164.15,164.04,1.2363]
[1729523966713,3.0474,164.14,164.11,3.0476]
[1729523969128,3.0476,164.12,164.04,1.2363]
[1729523969320,3.0476,164.12,164.1,3.0479]
[1729523969630,8.98172906,164.15,164.1,3.0479]
[1729523969828,3.0475,164.13,164.1,3.0479]
[1729523971225,3.0475,164.13,164.04,1.2363]
[1729523971226,3.0472,164.14,164.12,3.0476]
[1729523971930,8.98172906,164.15,164.04,1.2363]
[1729523972225,3.0474,164.13,164.04,1.2363]
[1729523972525,3.0474,164.13,164.1,3.0478]
[1729523972727,3.0474,164.13,164.04,1.2363]
[1729523973327,8.98172906,164.15,164.11,3.0476]
[1729523973328,3.0473,164.14,164.11,3.0476]
[1729523973530,8.98172906,164.15,164.04,1.2363]
[1729523975429,12.02882906,164.15,164.12,3.0474]
[1729523975730,8.98172906,164.15,164.12,3.0474]
[1729523976117,3.0472,164.14,164.12,3.0474]
[1729523976319,8.98172906,164.15,164.04,1.2363]
[1729523976521,3.10172906,164.15,164.05,6.0977]
[1729523976719,3.0471,164.15,164.06,2.569]
[1729523976919,6.11173999,164.15,164.06,2.569]
[1729523977131,3.0471,164.15,164.06,2.569]
[1729523977326,3.0471,164.15,164.12,3.0474]
[1729523977727,6.0849,164.15,164.12,3.0474]
[1729523978126,8.47879834,164.3,164.08,5.86]
[1729523978336,1.3071,164.26,164.08,5.86]
[1729523978630,4.41383,164.26,164.08,8.93806]
[1729523978833,5.86,164.25,164.12,6.095]
[1729523979028,8.97892999,164.25,164.13,9.6884]
[1729523979432,3.0455,164.24,164.2,3.046]
[1729523979935,3.0455,164.24,164.13,9.6884]
[1729523980923,3.0455,164.24,164.2,3.0459]
[1729523982326,3.11892999,164.25,164.13,9.6884]
[1729523982527,3.0455,164.23,164.13,9.6884]
[1729523982732,3.08441425,164.22,164.13,9.6884]
[1729523982929,7.1671,164.26,164.13,3.8284]
[1729523983126,10.19286951,164.26,164.15,3.047]
[1729523983322,10.19286951,164.26,164.12,5.86]
[1729523983738,3.0464,164.19,164.12,3.0474]
[1729523983942,5.86,164.21,164.09,5.86]
[1729523984742,5.86,164.21,164.16,3.0467]
[1729523985426,3.0462,164.2,164.17,3.0466]
[1729523989243,5.86,164.21,164.1,1.2619]
[1729523989443,3.0463,164.19,164.16,3.0467]
[1729523989738,4.33286951,164.26,164.1,1.2619]
[1729523989936,5.86,164.25,164.1,1.2619]
[1729523990533,6.089,164.29,164.1,1.2619]
[1729523990534,8.70417619,164.29,164.1,1.2619]
[1729523990739,2.5164,164.28,164.1,1.2619]
[1729523991039,5.50997732,164.28,164.11,5.86]
[1729523991244,2.5164,164.28,164.11,5.86]
[1729523991446,23.83985821,164.28,164.11,5.86]
[1729523991639,3.0465,164.18,164.15,3.047]
[1729523991843,3.02162877,164.17,164.15,3.047]
[1729523992140,3.02162877,164.17,164.11,5.86]
[1729523992141,3.02162877,164.17,164.16,3.0468]
[1729523992437,3.0463,164.19,164.16,3.0468]
[1729523992645,3.08218824,164.18,164.11,5.86]
[1729523992944,3.08218824,164.18,164.17,3.0466]
[1729523993146,5.86,164.2,164.11,5.86]
[1729523993348,5.86,164.23,164.11,5.86]
[1729523993642,3.046,164.21,164.18,3.0464]
[1729523994240,3.0457,164.22,164.19,3.0461]
[1729523994643,3.0840178,164.21,164.11,5.86]
[1729523994849,2.5164,164.28,164.11,5.86]
[1729523995141,2.5164,164.28,164.12,6.0952]
[1729523995532,3.0451,164.26,164.23,3.0455]
[1729523996139,3.0452,164.25,164.22,3.0456]
[1729523996339,6.0888885,164.25,164.22,3.0456]
[1729523996539,3.0436885,164.25,164.18,5.86]
[1729523996739,3.0452,164.26,164.23,3.0455]
[1729523997038,2.5164,164.28,164.18,5.86]
[1729523997238,8.3764,164.28,164.18,5.86]
[1729523997446,3.0454,164.24,164.21,3.0459]
[1729523997746,3.04673645,164.24,164.18,5.86]
[1729523997948,3.0452,164.25,164.19,3.0461]
[1729523998248,8.3764,164.28,164.18,5.86]
[1729523998249,3.04612686,164.24,164.18,5.86]
[1729523998450,3.0449,164.27,164.23,3.0455]
[1729523998637,8.3764,164.28,164.23,3.0455]
[1729523999642,3.045,164.26,164.21,3.0459]
[1729523999848,8.6989222,164.32,164.18,5.86]
[1729524000042,22.53548414,164.39,164.18,5.86]
[1729524000043,8.6989222,164.38,164.19,1.2558]
[1729524000447,11.42561865,164.39,164.2,7.1792]
[1729524000746,4.48949188,164.38,164.21,1.2444]
[1729524000950,3.0441,164.31,164.26,3.045]
[1729524001147,3.03698418,164.3,164.26,3.045]
[1729524001455,3.0439,164.32,164.27,3.0446]
[1729524001658,3.0439,164.32,164.25,5.86]
[1729524002055,6.14671344,164.32,164.25,5.86]
[1729524002256,3.0439,164.32,164.27,3.0446]
[1729524002458,8.6989222,164.38,164.21,1.2444]
[1729524002657,4.48659732,164.37,164.21,1.2444]
[1729524002852,24.16,164.36,164.21,1.2444]
[1729524003059,8.6989222,164.35,164.2,1.3192]
[1729524003454,3.9258,164.34,164.19,5.86]
[1729524003655,30.9247222,164.34,164.15,5.84]
[1729524003858,3.0455,164.24,164.19,3.0462]
[1729524004160,6.1311533,164.24,164.19,3.0462]
[1729524004360,3.0455,164.24,164.19,3.0462]
[1729524004661,3.06493604,164.23,164.19,3.0462]
[1729524005459,6.11043604,164.23,164.15,5.84]
[1729524005863,3.0455,164.23,164.15,5.84]
[1729524006261,3.0455,164.23,164.18,3.0463]
[1729524006454,5.84,164.26,164.15,5.84]
[1729524006660,3.0454,164.24,164.19,3.0461]
[1729524007267,3.0453,164.25,164.21,3.0458]
[1729524007666,3.0457,164.23,164.15,5.84]
[1729524007864,8.92380463,164.26,164.15,5.84]
[1729524008055,3.8619,164.25,164.14,5.84]
[1729524008558,3.8619,164.25,164.14,8.86436587]
[1729524009366,3.8619,164.25,164.14,5.84]
[1729524009566,3.0455,164.23,164.19,3.0461]
[1729524009768,3.0455,164.23,164.14,5.84]
[1729524010265,3.0454,164.24,164.14,5.84]
[1729524010462,3.8619,164.25,164.14,5.84]
[1729524011267,3.0462,164.2,164.16,3.0468]
[1729524012270,3.8619,164.25,164.13,2.5825]
[1729524012472,3.0468,164.16,164.12,1.2979]
[1729524012667,5.84,164.21,164.1,5.84]
[1729524012864,3.0466,164.17,164.11,3.0477]
[1729524013062,3.0468695,164.17,164.09,5.84]
[1729524013366,5.84,164.19,164.09,5.84]
[1729524013566,6.0908,164.24,164.09,5.84]
[1729524013567,5.84,164.22,164.09,5.84]
[1729524014167,5.84,164.22,164.15,3.0469]
[1729524014372,5.84,164.22,164.09,5.84]
[1729524014774,3.0471,164.15,164.11,3.0476]
[1729524015466,2.98528579,164.17,164.09,5.84]
[1729524015659,5.84,164.22,164.09,5.84]
[1729524016167,3.047,164.15,164.09,5.84]
[1729524017369,3.047,164.15,164.1,3.0478]
[1729524017564,3.047,164.15,164.09,5.84]
[1729524017765,3.01901091,164.16,164.09,5.84]
[1729524018058,5.84,164.22,164.14,3.0471]
[1729524018259,3.0468,164.16,164.14,3.0471]
[1729524018470,6.12417702,164.16,164.14,3.0471]
[1729524018866,6.12417702,164.16,164.13,3.0473]
[1729524019271,6.12417702,164.16,164.09,5.84]
[1729524019474,3.0462,164.2,164.09,5.84]
[1729524019669,9.7019,164.25,164.09,5.84]
[1729524019874,1.2662,164.19,164.09,5.84]
[1729524020071,2.6529,164.18,164.09,5.84]
[1729524020468,3.0473,164.14,164.11,3.0476]
[1729524020769,2.98681212,164.16,164.09,5.84]
[1729524020971,2.6529,164.18,164.09,5.84]
[1729524021173,2.6529,164.18,164.11,3.0476]
[1729524021373,3.09353844,164.17,164.11,3.0476]
[1729524021975,3.09353844,164.17,164.09,5.84]
[1729524022176,3.0471,164.15,164.12,3.0476]
[1729524022677,3.0468,164.16,164.13,3.0473]
[1729524022978,2.98375612,164.16,164.09,5.84]
[1729524023179,3.0471,164.15,164.13,3.0474]
[1729524023480,3.08012437,164.16,164.13,3.0474]
[1729524023777,7.1062,164.19,164.09,5.84]
[1729524024078,7.1062,164.19,164.14,3.0471]
[1729524024376,7.1062,164.19,164.09,5.84]
[1729524024677,1.2662,164.19,164.15,3.0469]
[1729524024880,4.3126,164.19,164.09,5.84]
[1729524025071,1.2662,164.19,164.09,5.84]
[1729524025571,3.0468,164.16,164.09,5.84]
[1729524025773,3.0468,164.16,164.14,3.0472]
[1729524026775,3.0468,164.16,164.13,3.0473]
[1729524027173,6.1613938,164.17,164.15,3.047]
[1729524027374,3.0467,164.17,164.15,3.047]
[1729524027876,3.0465,164.18,164.16,3.0468]
[1729524028077,3.04017528,164.17,164.16,3.0468]
[1729524028582,3.0465,164.18,164.16,3.0468]
[1729524029880,1.2662,164.19,164.16,3.0468]
[1729524030080,3.0464,164.19,164.17,3.0466]
[1729524030871,3.0464,164.19,164.16,3.0468]
[1729524032381,3.0466,164.18,164.16,3.0468]
[1729524033483,5.84,164.22,164.16,3.0468]
[1729524033682,3.0464,164.19,164.16,3.0468]
[1729524034278,3.0464,164.19,164.14,3.0472]
[1729524034477,5.84,164.22,164.14,3.0472]
[1729524034679,5.84,164.22,164.09,5.84]
[1729524034884,3.0464,164.19,164.16,3.0467]
[1729524035181,5.84,164.22,164.16,3.0467]
[1729524035582,5.84,164.22,164.17,3.0466]
[1729524035982,5.84,164.22,164.09,5.84]
[1729524036383,3.0464,164.19,164.16,3.0467]
[1729524036580,2.6521,164.24,164.14,5.84]
[1729524036777,1.3498,164.25,164.15,2.5646]
[1729524036976,1.3498,164.25,164.21,3.0457]
[1729524037186,3.08380463,164.26,164.15,3.9218]
[1729524037388,3.0452,164.25,164.22,3.0456]
[1729524037580,6.02719085,164.25,164.22,3.0456]
[1729524038288,2.98199085,164.25,164.15,3.9218]
[1729524038488,5.84,164.27,164.15,3.9218]
[1729524038682,5.84,164.27,164.19,3.0461]
[1729524038883,5.84,164.27,164.15,3.9218]
[1729524039086,8.90490457,164.27,164.15,3.9218]
[1729524039980,3.0456,164.23,164.2,3.0461]
[1729524040180,8.90490457,164.27,164.15,2.5646]
[1729524040380,8.90490457,164.27,164.13,5.84]
[1729524040782,6.0901,164.26,164.13,5.84]
[1729524041290,3.0465,164.18,164.16,3.0468]
[1729524041485,6.06008363,164.18,164.13,5.84]
[1729524041792,3.01358363,164.18,164.13,5.84]
[1729524041987,3.046,164.21,164.13,5.84]
[1729524042389,3.046,164.21,164.18,3.0464]
[1729524042796,3.046,164.21,164.13,5.84]
[1729524042982,3.046,164.21,164.17,3.0466]
[1729524043492,3.0461,164.2,164.17,3.0466]
[1729524044194,3.0463,164.19,164.17,3.0466]
[1729524044390,3.06412897,164.18,164.13,5.84]
[1729524044594,5.84,164.22,164.13,5.84]
[1729524045094,5.84,164.22,164.16,3.0468]
[1729524045489,3.0464,164.19,164.16,3.0468]
[1729524045684,5.84,164.22,164.15,3.047]
[1729524045886,3.0471,164.15,164.1,2.575]
[1729524046092,3.10772802,164.15,164.1,2.575]
[1729524046288,3.8748,164.21,164.13,3.0472]
[1729524046494,3.0469,164.16,164.13,3.0472]
[1729524046688,3.10467914,164.15,164.13,3.0472]
[1729524047386,3.10467914,164.15,164.12,3.0476]
[1729524047387,6.15177914,164.15,164.12,3.0476]
[1729524047591,3.8748,164.21,164.12,3.0476]
[1729524047998,3.0471,164.15,164.12,3.0476]
[1729524048296,6.04537742,164.15,164.1,2.575]
[1729524048796,3.8748,164.21,164.15,3.0469]
[1729524049396,3.0466,164.18,164.15,3.0469]
[1729524049592,3.00346158,164.17,164.15,3.0469]
[1729524049798,3.0467,164.17,164.15,3.0469]
[1729524049998,6.08431609,164.17,164.15,3.0469]
[1729524050298,3.03761609,164.17,164.1,2.575]
[1729524050694,3.8748,164.21,164.1,2.575]
[1729524050895,3.0465,164.18,164.15,3.0468]
[1729524051095,3.07505748,164.17,164.15,3.0468]
[1729524051499,3.0468,164.16,164.13,3.0472]
[1729524051690,3.8748,164.21,164.13,3.0472]
[1729524052602,3.0469,164.16,164.13,3.0472]
[1729524052902,3.0469,164.16,164.14,3.0472]
[1729524053102,3.0241318,164.17,164.14,3.0472]
[1729524053303,3.0467,164.17,164.14,3.0472]
[1729524053504,6.14859258,164.17,164.14,3.0472]
[1729524054299,3.0467,164.17,164.14,3.0472]
[1729524054499,5.84,164.2,164.14,3.0472]
[1729524055205,3.0468,164.17,164.14,3.0472]
[1729524055405,6.10527201,164.17,164.14,3.0472]
[1729524059001,6.10527201,164.17,164.1,2.575]
[1729524059002,3.05847201,164.17,164.16,3.0468]
[1729524059202,3.0464,164.19,164.1,2.575]
[1729524059806,1.2902,164.21,164.18,3.0465]
[1729524060001,1.2902,164.21,164.1,2.575]
[1729524060703,8.74310016,164.24,164.1,8.6706]
[1729524060910,5.84,164.23,164.1,2.575]
[1729524061298,3.0464,164.19,164.16,3.0467]
[1729524061505,3.00211472,164.18,164.11,6.0955]
[1729524062307,3.00211472,164.18,164.13,3.0474]
[1729524062509,3.00211472,164.18,164.11,6.0955]
[1729524063306,3.0465,164.18,164.16,3.0468]
[1729524063503,3.0112658,164.17,164.1,2.575]
[1729524063703,3.0472,164.15,164.12,3.0474]
[1729524064006,5.82,164.18,164.09,5.82]
[1729524064307,1.2302,164.17,164.09,5.82]
[1729524064604,1.2302,164.17,164.05,114.38828746]
[1729524064807,2.5701,164.16,164.05,1.2505]
[1729524065298,3.0476,164.12,164.09,3.048]
[1729524067205,3.0479,164.1,164.07,3.0484]
[1729524067410,2.5701,164.16,164.05,1.2505]
[1729524067411,5.82,164.13,164.05,1.2505]
[1729524069012,5.82,164.13,164.03,5.82]
[1729524069510,3.0481,164.1,164.06,3.0485]
[1729524070109,3.0482,164.09,164.06,3.0485]
[1729524070911,5.82,164.13,164.03,5.82]
[1729524071312,3.0479,164.1,164.06,3.0486]
[1729524071513,5.82,164.13,164.06,3.0486]
[1729524072016,5.82,164.13,164.03,5.82]
[1729524072017,5.82,164.13,164.08,3.0481]
[1729524072514,3.0479,164.11,164.08,3.0481]
[1729524073516,5.82,164.13,164.08,3.0481]
[1729524074214,3.048,164.1,164.03,5.82]
[1729524074917,3.048,164.1,164.07,3.0485]
[1729524075909,3.0478,164.11,164.08,3.0482]
[1729524077621,3.0479,164.1,164.08,3.0482]
[1729524079109,2.5701,164.16,164.09,3.0481]
[1729524079110,5.82,164.14,164.09,3.0481]
[1729524079916,3.0478,164.11,164.09,3.0481]
[1729524082221,3.048,164.1,164.08,3.0483]
[1729524083425,3.0477,164.12,164.09,3.0481]
[1729524084327,3.048,164.1,164.03,5.82]
[1729524085024,3.0479,164.11,164.08,3.0482]
[1729524085627,3.0475,164.13,164.11,3.0477]
[1729524085815,5.82,164.15,164.11,3.0477]
[1729524086423,5.82,164.15,164.03,5.82]
[1729524086928,3.0481,164.1,164.03,5.82]
[1729524087238,3.0481,164.1,164.07,3.0484]
[1729524089025,3.0475,164.13,164.07,3.0484]
[1729524089220,5.82,164.15,164.07,3.0484]
[1729524089818,3.0481,164.09,164.07,3.0484]
[1729524092030,3.0481,164.1,164.07,3.0484]
[1729524092428,3.0482,164.09,164.06,3.0486]
[1729524092628,5.82,164.15,164.06,3.0486]
[1729524093531,3.0483,164.08,164.06,3.0486]
[1729524093924,3.0478,164.11,164.09,3.048]
[1729524094124,5.82,164.15,164.09,3.048]
[1729524094534,3.0477,164.12,164.09,3.048]
[1729524095130,3.0478,164.11,164.09,3.048]
[1729524096431,5.82,164.15,164.02,5.82]
[1729524096740,3.0476,164.12,164.02,5.82]
[1729524097138,3.0475,164.13,164.1,3.0478]
[1729524097535,5.82,164.15,164.1,3.0478]
[1729524098840,3.0476,164.12,164.1,3.0478]
[1729524099737,11.79434174,164.18,164.02,5.82]
[1729524099940,8.84602173,164.18,164.04,6.0981]
[1729524100342,5.8,164.17,164.04,6.0981]
[1729524100541,3.0474,164.14,164.1,3.0479]
[1729524100742,5.8,164.17,164.1,3.0479]
[1729524101546,14.54832001,164.17,164.1,3.0479]
[1729524101749,5.8,164.17,164.1,3.0479]
[1729524101941,3.0476,164.12,164.09,3.048]
[1729524104750,3.0478,164.11,164.02,5.82]
[1729524104951,3.0478,164.11,164.08,3.0482]
[1729524105141,5.8,164.17,164.03,5.8]
[1729524105340,5.8,164.17,164.07,3.0484]
[1729524105540,24.1,164.17,164.0,3.8858]
[1729524105744,3.0488,164.06,163.92,6.5114514]
[1729524105945,6.04890688,164.06,163.95,2.6014]
[1729524106147,3.00010688,164.06,163.96,3.25555669]
[1729524106344,3.0489,164.05,164.02,3.0493]
[1729524106539,3.10260164,164.04,164.02,3.0493]
[1729524106743,3.10260164,164.04,163.95,2.6014]
[1729524106948,3.0489,164.05,164.02,3.0493]
[1729524107148,3.07087707,164.04,164.02,3.0493]
[1729524110146,3.0492,164.03,164.0,3.0497]
[1729524110447,3.07087707,164.04,163.95,2.6014]
[1729524110655,3.7959,164.07,163.95,2.6014]
[1729524110946,3.0494,164.03,164.0,3.0497]
[1729524116060,6.84562489,164.07,163.95,8.4014]
[1729524117058,3.0495,164.02,163.99,3.0499]
[1729524118152,5.8,164.03,163.93,5.8]
[1729524118548,3.0498,164.01,163.92,1.2826]